Cogmind - Beta 14 @@@ ROGUE MODE // 2024.10.10 @ 04:38:22 Player: laeb2 Result: Destroyed by E3-CA1(R) with Subdweller Beam Cannon Performance ------------- Evolutions (0) 0 Regions Visited (2) 400 Robots Destroyed (22) 110 Value Destroyed (374) 374 Prototype IDs (0) 0 Alien Tech Used (0) 0 Bonus (0) 0 TOTAL SCORE: 884 Bonus ------- None Cogmind --------- Core Integrity 0/250 Matter 228/300 Energy 84/100 System Corruption 0% Temperature Warm (114) Movement Treading (160) Location -10/Subcaves Parts ------- > --- POWER (1) -------- (None) > --- PROPULSION (2) --- Spiked Treads > --- UTILITY (2) ------ Terrain Scan Processor Makeshift Thermal Plating > --- WEAPON (2) ------- Grenade Launcher Hammer > --- INVENTORY (5) ---- Light Treads Light Treads Light Treads Flight Unit Peak State ------------ > --- POWER ------------ (None) > --- PROPULSION ------- Spiked Treads Flight Unit > --- UTILITY ---------- Improved Terrain Scanner Terrain Scan Processor > --- WEAPON ----------- Barrage Gun Hammer > --- INVENTORY -------- Light Treads Light Treads Light Treads Light Treads Grenade Launcher [Rating: 12] Favorites ----------- Power None Propulsion Flight Unit Treads Light Treads Flight Unit Flight Unit Utility Terrain Scanner Device Terrain Scanner Processor Terrain Scan Processor Protection Light Armor Plating Weapon Hammer Ballistic Gun Barrage Gun Launcher Grenade Launcher Impact Weapon Hammer Build | -11 -10 -10 ------- Run | Yrd Mat Sub Slots Evolved . | . . . Power . | . . . Propulsion . | . . . Utility . | . . . Weapon . | . . . Parts Attached 30 | . 24 6 Power . | . . . Engine . | . . . Core . | . . . Reactor . | . . . Propulsion 16 | . 14 2 Treads 14 | . 12 2 Leg . | . . . Wheel . | . . . Hover . | . . . Flight 2 | . 2 . Utility 5 | . 4 1 Device 2 | . 2 . Storage . | . . . Processor 1 | . 1 . Hackware . | . . . Protection 2 | . 1 1 Artifact . | . . . Weapon 9 | . 6 3 Energy Gun . | . . . Energy Cannon . | . . . Ballistic Gun 1 | . . 1 Ballistic Cannon . | . . . Launcher 4 | . 3 1 Special Weapon . | . . . Impact Weapon 4 | . 3 1 Slashing Weapon . | . . . Piercing Weapon . | . . . Special Melee Weapon . | . . . Unidentified Prototypes . | . . . Parts Lost 4 | . 1 3 Power . | . . . Propulsion 2 | . . 2 Utility 1 | . 1 . Weapon 1 | . . 1 Highest Loss Streak 3 | . 1 3 To Critical Strikes . | . . . Average Slot Usage (%) 30 | . 23 69 Treads 4 | . 4 5 Flight 6 | . 4 18 Device 4 | . 3 11 Processor 2 | . . 14 Launcher 1 | . 1 . Impact Weapon 9 | . 8 14 Peak Build Rating 12 | . 8 12 Average Rating 2 | . 1 8 On Entrance 2 | . . 8 Naked Turns 109 | . 109 . Heaviest Build 6 | . 5 6 Greatest Support 40 | 3 40 40 Greatest Overweight (x) 1 | . 1 . Average Overweight (x) . | . . . Largest Inventory Capacity 5 | 5 5 5 Average Capacity 5 | 5 5 5 Most Carried 5 | . 5 5 Average Carried 3 | . 3 4 Final Capacity 5 | 5 5 5 Final Carried 5 | . 5 4 Class Distribution -------------------- 85% | Mutant 14% | Scavenger-Mutant Dominant Class ---------------- Mutant | -10/Materials Scavenger-Mutant | -10/Subcaves Resources | -11 -10 -10 ----------- Run | Yrd Mat Sub Matter Collected 505 | 200 179 126 Remotely . | . . . Salvage Created 526 | . 526 . Parts 25 | . 25 . Haulers Intercepted 2 | . 2 . Recyclers Shooed . | . . . Parts Field Recycled . | . . . Retrieved Matter . | . . . Parts Self-Destructed . | . . . Prevented . | . . . Kills | -11 -10 -10 ------- Run | Yrd Mat Sub Combat Hostiles Destroyed 9 | . 9 . Melee 3 | . 3 . AOE 3 | . 3 . Classes Destroyed 7 | . 7 . Builder 7 | . 7 . Tunneler 1 | . 1 . Hauler 2 | . 2 . Recycler 1 | . 1 . Watcher 2 | . 2 . Swarmer 3 | . 3 . Grunt 6 | . 6 . Best Kill Streak 6 | . 6 . Combat Bots Only 4 | . 4 . Max Kills in Single Turn 3 | . 3 . Gunslinging . | . . . Exploded 1 | . 1 . Melee 1 | . 1 . Uniques/NPCs Destroyed . | . . . Combat | -11 -10 -10 -------- Run | Yrd Mat Sub Hostile Shots Fired 75 | . 47 28 Missed 22 | . 13 9 Damage Taken 851 | . 402 449 Core 263 | . 152 111 Absorbed by Shields . | . . . Ignored by Resistances 15 | . . 15 Core Remaining (%) 100 | 100 . . Volleys Fired 15 | . 8 7 Largest 1 | . 1 1 Hottest 30 | . 30 28 Shots Fired 15 | . 8 7 Gun 7 | . . 7 Cannon . | . . . Launcher 8 | . 8 . Special . | . . . Kinetic 7 | . . 7 Thermal . | . . . Explosive 8 | . 8 . Electromagnetic . | . . . Robot Hit Streak 10 | . 4 10 Robot Miss Streak 1 | . 1 1 Penetration Max . | . . . Secondary Targets . | . . . Shots Hit Robots 44 | . 38 6 Core Hits 16 | . 15 1 Critical Kills . | . . . Critical Parts Destroyed 6 | . 6 . Critical Strikes 6 | . 6 . Smash 6 | . 6 . Melee Attacks 48 | . 42 6 Impact 48 | . 42 6 Slashing . | . . . Piercing . | . . . Sneak Attacks 7 | . 7 . Combat Hostiles . | . . . Follow-up Attacks . | . . . Damage Inflicted 1590 | . 1497 93 Guns 93 | . . 93 Cannons . | . . . Explosions 418 | . 418 . Melee 1076 | . 1076 . Ramming 3 | . 3 . Kinetic 93 | . . 93 Thermal . | . . . Explosive 418 | . 418 . Electromagnetic . | . . . Impact 1076 | . 1076 . Slashing . | . . . Piercing . | . . . Highest Corruption . | . . . Average Corruption . | . . . Corruption Purged . | . . . Corruption Blocked . | . . . Overload Shots . | . . . Overflow Damage 350 | . 350 . Projectiles . | . . . Explosions 15 | . 15 . Melee 335 | . 335 . Knockbacks 6 | . 6 . Impact 6 | . 6 . Kinetic . | . . . Secondary . | . . . Self-Inflicted Damage 35 | . 35 . Shots 3 | . 3 . Rammed 3 | . 3 . Targets Rammed 3 | . 3 . Kicked . | . . . Crushed . | . . . Highest Temperature 224 | . . 224 Average Temperature 164 | . . 164 Received Heat Transfer 491 | . 171 320 Siege Activations . | . . . Robots Corrupted 8 | . 8 . Combat Hostiles 3 | . 3 . Parts Fried 12 | . 12 . Impact Corruptions 18 | . 18 . Robots Melted . | . . . Combat Hostiles . | . . . Parts Melted . | . . . Heat Transferred . | . . . Parts Sabotaged . | . . . Parts Stolen . | . . . Parts Stripped . | . . . Power Chain Reactions . | . . . Alert | -11 -10 -10 ------- Run | Yrd Mat Sub Peak Influence 251 | . 251 . Initial . | . . . Average 91 | . 94 . Maximum Alert Level 1 | . 1 . Low Security (%) 82 | 100 82 . Level 1 17 | . 17 . Level 2 . | . . . Level 3 . | . . . Level 4 . | . . . Level 5 . | . . . High Security . | . . . Max Security . | . . . Squads Dispatched . | . . . Investigation . | . . . Extermination . | . . . Reinforcement . | . . . Assault . | . . . Garrison . | . . . Intercept . | . . . Searches Triggered . | . . . Construction Impeded . | . . . Haulers Reinforced . | . . . Active Scanning Responses . | . . . Cargo Convoy Interrupts . | . . . Stealth | -11 -10 -10 --------- Run | Yrd Mat Sub Distress Signals 4 | . 4 . Communications Jammed . | . . . Distress Signals . | . . . Times Spotted 24 | . 22 2 Peak Tracking Total 6 | . 6 2 Tactical Retreats 4 | . 4 . Traps | -11 -10 -10 ------- Run | Yrd Mat Sub Traps Triggered . | . . . Indirectly . | . . . Trap Hack Attempts . | . . . Triggered . | . . . Disarmed . | . . . Reprogrammed . | . . . Reused . | . . . Traps Extracted . | . . . Installed . | . . . Triggered . | . . . Machines | -11 -10 -10 ---------- Run | Yrd Mat Sub Machines Disabled 3 | . 3 . Max in Single Turn 1 | . 1 . Machines Repaired . | . . . Machines Dismantled . | . . . Machines Sabotaged . | . . . Overloaded Fab Kills . | . . . Hacking | -11 -10 -10 --------- Run | Yrd Mat Sub Machines Accessed 4 | . 4 . Terminals 4 | . 4 . Fabricators . | . . . Repair Stations . | . . . Recycling Units . | . . . Scanalyzers . | . . . Garrison Access . | . . . Total Hacks 7 | . 7 . Successful 3 | . 3 . Failed 4 | . 4 . Catastrophic 1 | . 1 . Database Lockouts . | . . . Manual 9 | . 9 . Terminals 7 | . 7 . Fabricators . | . . . Repair Stations . | . . . Recycling Units . | . . . Scanalyzers . | . . . Garrison Access . | . . . Terminal Hacks 2 | . 2 . Robot Analysis 2 | . 2 . Fabricator Hacks . | . . . Repair Station Hacks . | . . . Recycling Unit Hacks . | . . . Scanalyzer . | . . . Garrison Access Hacks . | . . . Unauthorized Hacks 1 | . 1 . Terminals 1 | . 1 . Assimilate 1 | . 1 . Fabricators . | . . . Repair Stations . | . . . Recycling Units . | . . . Scanalyzers . | . . . Garrison Access . | . . . Data Cores Recovered . | . . . Used . | . . . Hacking Detections 3 | . 3 . Full Trace Events . | . . . Feedback Events . | . . . Feedback Blocked . | . . . Robot Schematics Acquired . | . . . Robots Built . | . . . Authchips . | . . . Time . | . . . Total Robot Build Rating . | . . . Part Schematics Acquired . | . . . Parts Built . | . . . Authchips . | . . . Time . | . . . Total Part Build Rating . | . . . Parts Repaired . | . . . Time . | . . . Parts Recycled . | . . . Recycled Matter . | . . . Retrieved Matter . | . . . Retrieved Components . | . . . Parts Scanalyzed . | . . . Part Schematics Acquired . | . . . Parts Damaged . | . . . Bothacking | -11 -10 -10 ------------ Run | Yrd Mat Sub Used RIF Installer . | . . . Robots Hacked . | . . . Non-combat . | . . . Combat . | . . . Robot Hacks Applied . | . . . Relay Couplers Released . | . . . Fabnet Peak Effective % . | . . . Robots Rewired . | . . . Allies Hacked . | . . . Hacks Repelled . | . . . Allies | -11 -10 -10 -------- Run | Yrd Mat Sub Total Allies 1 | . 1 . Largest Group 1 | . 1 . Highest-Rated Group 10 | . 10 . Highest-Rated Ally 10 | . 10 . Total Orders . | . . . Ally Attacks . | . . . Total Damage . | . . . Kills . | . . . Allies Corrupted . | . . . Allies Melted . | . . . Intel | -11 -10 -10 ------- Run | Yrd Mat Sub Robot Analysis Total 2 | . 2 . Derelict Logs Recovered . | . . . Drone Launches . | . . . Drone Recoveries . | . . . Exploration | -11 -10 -10 ------------- Run | Yrd Mat Sub Turns Passed 734 | 17 613 104 Spaces Moved 788 | 33 668 87 Core 570 | 33 537 . Treads 32 | . 24 8 Legs . | . . . Wheels . | . . . Hover . | . . . Flight 186 | . 107 79 Fastest Speed 37 | 50 37 37 Average Speed 51 | 50 52 48 Slowest Speed 160 | 50 160 160 Overloaded Moves . | . . . Propulsion Burnouts . | . . . Robots Hopped . | . . . Cave-ins Triggered . | . . . Exploration Rate (%) 29 | 3 78 6 Regions Visited 2 Branch Regions 1 Pre-discovered Areas . | . . . Known Exits Taken . | . . . Unknown Exits Taken 2 | 1 1 . Scrap Searched 3 | . . 3 Spaces Dug 5 | . 2 3 Terrain Destroyed 29 | . 26 3 Melee 5 | . 2 3 Projectile . | . . . AOE 24 | . 24 . Terrain Rammed . | . . . Walls Destroyed . | . . . Machines Disabled . | . . . Actions | -11 -10 -10 --------- Run | Yrd Mat Sub Total 1012 | 32 850 130 Wait 107 | . 84 23 Move 786 | 32 667 87 Hop . | . . . Pick Up 8 | . 8 . Fast Attach 7 | . 4 3 Attach 16 | . 15 1 Detach 12 | . 12 . Swap 7 | . 5 2 Drop 3 | . 2 1 Fire 15 | . 8 7 Melee 48 | . 42 6 Ram . | . . . Kick . | . . . Crush 3 | . 3 . Escape Stasis . | . . . Rewire . | . . . Trap . | . . . Miscellaneous . | . . . Route ------- -11/Scrapyard -10/Materials (discovered 4 exits: [*Mat x2] / [*Min] / [*Sub]) -10/Subcaves History --------- Turn | Location | Event 7 | -11/Scrapyard | Discovered new exit (range 14) 18 | -11/Scrapyard | Entered Materials 140 | -10/Materials | Discovered new exit (range 12) 278 | -10/Materials | Discovered new exit (range 16) 339 | -10/Materials | Build established: Mutant 524 | -10/Materials | Discovered new exit (range 9) 601 | -10/Materials | Core integrity fell below 50% 624 | -10/Materials | Discovered new exit (range 6) 631 | -10/Materials | Entered Subcaves 642 | -10/Subcaves | Disturbed a concealed Subdweller 711 | -10/Subcaves | Core integrity fell below 20% 735 | -10/Subcaves | Destroyed by E3-CA1(R) with Subdweller Beam Cannon Last Messages --------------- Found 66 Matter. Acquired Spk. Treads. Searching scrap... Found Barrage Gun. Found 63 Matter. Acquired 63 matter. Subatomizers dissect the Barrage Gun. Acquired Barrage Gun. The unstable cave ceiling collapses. Lgt. Treads destroyed. Searching scrap... Found Mak. Thermal Plating. Found Battle Rifle. Found 63 Matter. Acquired 63 matter. Dropped Imp. Terrain Scanner. Acquired Mak. Thermal Plating. Subatomizers dissect the Battle Rifle. Critical hit (Meltdown: +230). Barrage Gun destroyed. Map ----- +----------------------------------------------------+ | ?????????????????????????????????????????????????? | | ?????????????????????????????????????????????????? | | ???????????????#?????????????????????????????????? | | ??????????????#?#??###???????????????????????????? | | ?????#???????????????##??????????????????????????? | | ??????###???#?#?????#????#???????????????????????? | | ?#??????????#????###?#??#????????????????????????? | | ???????#????###???##???##?#?#????????????????????? | | ??#??????#????????##????#?#??????????????????????? | | ??##????#?#??##?#??#?#??##???????????????????????? | | ???###?##?######???????##????????????????????????? | | ?##??#???##?#####??#?#???????#???????????????????? | | ?#?#??#?##???##?#???##????#?##????#??????????????? | | ??#????###?#??#???#?##?#??##???#?????????????????? | | ##?###???#?#?#?#??#?#?##??#??##?#????????????????? | | #???####?##???##??#??????#?#??#??????????????????? | | ???#?################??##????####????????????????? | | #???#?### #???#??#?##?##?????????????????? | | ??###?#?# ##### ###??##?#????##?#??????????????? | | ?######## ## ""## ##########??##?????????????????? | | ??### ## #""$$"# "#; <<<#?#? ?????????????????? | | ?### ## &&$$"## ##% < ##?"?"?????#??????????? | | ### # #"$## ##< R #? ? ??#?????????????? | | ### # #<< [ #$# ??"????????????????? | | ## # ## R! ;## ???????????????????? | | ### ""##### @##?????????????????????? | | ## " """##?#$$ ???? ??#?????????????? | | "" ## """ ""#####< #####?????#?????????????? | | ##"## """"###?##< $ #???? ??????##??????????? | | # ""###???### ? ??#??????????????????? | | " ""##??#?##?##<< ## ????##???????????????? | | """ "###?####??#######???????????????????????? | | # """ ###????##? #?#? ????? ????? ???????????? | | ###""# ????###??? ??? ?? ?????????????????????? | | "#?"""??? ? ????? ?? ??? ? ?? ????????????????? | | #??"? ?????? "?? ???????????????????????????? | | """?????????"??????????????????????????????? | | "" "" ???????? ???????? ??????????????????????? | | """ "??????#??????????????????????????????????? | | "" ?????"???????????????????????????????????? | | ??" "???????????????????????????????????????? | | ???" ???????????????????????????????????????? | | "????????????????????????????????????????????? | | """????????????????????????????????????????????? | | ???????????????????????????????????????????????? | | ?????????????????????????????????????????????????? | | ?????????????????????????????????????????????????? | | ?????????????????????????????????????????????????? | | ?????????????????????????????????????????????????? | | ?????????????????????????????????????????????????? | +----------------------------------------------------+ Best States ------------- Heat Dissipation 25 Energy Generation 5 Energy Capacity 100 Matter Stores 300 Matter Capacity 300 Sight Range 16 Terrain Scan Range 16 Terrain Scan Density 85 Armor Coverage 150 Resistance: TH 10 Evasion (%) 62 Recoil Reduction 2 Item Schematics ----------------- None Robot Schematics ------------------ None Fabricated ------------ Nothing Alien Tech Used ----------------- None Achievements -------------- None Challenges ------------ None Game ------ Seed 999 Manual? 1 Play Time 00:11:22 Cumulative 40.0 hours Start 2024.10.10 @ 04:28:27 End 2024.10.10 @ 04:38:22 Sessions 1 Manual Loads 0 Difficulty Rogue Special Mode None Game No. 54 Rogue 54 Adventurer 0 Explorer 0 Win Type - Total 1 Types 1/0/0/0/0/0/0/0/0 Lore% 32 Gallery% 38 Achievement% 37 Wizard Run 0 Options --------- Layout 1 ASCII 0 Keyboard 0 Movement Mouse Keybinds 0 Fullscreen 1 Font 32/SmallcapsGlow Map View 50x35 Zoom Use 0% Tactical HUD 0 Map Filters NONE Filters NONE Steam 1 RUN: 269cf299-ada9-45d4-8ca7-1f95c6181856